bitfinex/quotes_BTCUSD_20250623
["timestamp","ask_amount","ask_price","bid_price","bid_amount"]
[1750689453446,0.0001,101960.0,101950.0,0.39640753]
[1750689453664,0.48670341,101960.0,101950.0,0.59810753]
[1750689453880,0.48670341,101960.0,101950.0,0.55887398]
[1750689454099,0.48670341,101960.0,101950.0,0.5382827]
[1750689454532,0.82670341,101960.0,101950.0,0.17892]
[1750689454956,1.34440682,101960.0,101950.0,0.17892]
[1750689455167,0.85780341,101960.0,101950.0,0.17892]
[1750689455368,0.85780341,101960.0,101950.0,0.37509459]
[1750689455369,0.82670341,101960.0,101950.0,0.37509459]
[1750689455599,0.82670341,101960.0,101940.0,0.39473301]
[1750689455825,0.82660341,101950.0,101930.0,0.19621292]
[1750689456047,0.3722,101950.0,101940.0,0.17888]
[1750689456260,0.85880341,101950.0,101940.0,0.17888]
[1750689456734,0.87334426,101950.0,101940.0,0.17888]
[1750689457625,0.87334426,101950.0,101930.0,0.00013789]
[1750689457888,0.85890341,101940.0,101930.0,0.00013789]
[1750689458114,0.88900341,101940.0,101930.0,0.17897789]
[1750689458347,1.00384365,101940.0,101930.0,0.00013789]
[1750689459076,1.00584365,101940.0,101930.0,0.00013789]
[1750689459569,1.00384365,101940.0,101930.0,0.00013789]
[1750689460209,1.01084365,101940.0,101930.0,0.00013789]
[1750689460410,1.01484365,101940.0,101930.0,0.00013789]
[1750689465149,0.0301,101910.0,101890.0,0.13115406]
[1750689465350,0.0301,101910.0,101890.0,0.25723406]
[1750689465351,0.82660341,101900.0,101890.0,0.25723406]
[1750689465796,0.82660341,101900.0,101890.0,0.45352417]
[1750689466013,0.82660341,101900.0,101890.0,0.46333867]
[1750689466224,0.34,101900.0,101890.0,0.66148041]
[1750689466432,0.34,101900.0,101890.0,0.6614805]
[1750689466641,0.34,101900.0,101890.0,0.6579404]
[1750689466849,0.82660341,101900.0,101890.0,0.6589404]
[1750689467322,0.82660341,101900.0,101890.0,0.66875365]
[1750689467795,0.48660341,101900.0,101890.0,0.59047959]
[1750689468042,0.48660341,101900.0,101890.0,0.58566576]
[1750689468324,0.48660341,101900.0,101890.0,0.58466567]
[1750689468577,0.48660341,101900.0,101890.0,0.58766576]
[1750689468803,0.48660341,101900.0,101890.0,0.59747959]
[1750689469015,0.04044081,101910.0,101890.0,0.58766576]
[1750689469229,0.48660341,101900.0,101890.0,0.59747959]
[1750689469481,0.48660341,101910.0,101900.0,0.19626948]
[1750689469680,0.82660341,101910.0,101900.0,0.20608302]
[1750689469893,0.82660341,101910.0,101890.0,0.5876647]
[1750689469894,0.83752551,101910.0,101890.0,0.57285107]
[1750689470103,0.83752551,101910.0,101890.0,0.56303724]
[1750689470357,0.48660341,101900.0,101890.0,0.5434093]
[1750689470613,0.48660341,101900.0,101890.0,0.28263919]
[1750689470843,0.48660341,101900.0,101890.0,0.1823398]
[1750689471284,0.48660341,101900.0,101890.0,0.1853398]
[1750689471490,0.48660341,101900.0,101890.0,0.1793398]
[1750689471928,0.48660341,101900.0,101890.0,0.1843398]
[1750689472203,0.90504426,101900.0,101890.0,0.0056598]
[1750689472436,1.00534365,101900.0,101890.0,0.0056598]
[1750689472663,1.00534365,101900.0,101890.0,0.0086598]
[1750689473147,1.97354706,101900.0,101870.0,0.17864]
[1750689473362,1.97354706,101900.0,101850.0,0.061]
[1750689473363,0.34,101870.0,101850.0,0.061]
[1750689473580,0.48660341,101860.0,101850.0,0.30998978]
[1750689474231,0.48660341,101860.0,101850.0,0.13138978]
[1750689474451,0.82660341,101860.0,101850.0,0.17869039]
[1750689474909,0.82660341,101860.0,101850.0,0.00309039]
[1750689475122,0.82660341,101860.0,101850.0,0.18169039]
[1750689475335,0.82660341,101860.0,101850.0,0.21269039]
[1750689475554,0.82660341,101860.0,101850.0,0.41887575]
[1750689475761,0.82660341,101860.0,101850.0,0.20969039]
[1750689476009,0.82660341,101860.0,101850.0,0.21069039]
[1750689476233,0.34,101860.0,101850.0,0.55889341]
[1750689476458,0.34,101860.0,101850.0,0.56871138]
[1750689476669,0.34,101860.0,101850.0,0.34288978]
[1750689476911,0.82660341,101860.0,101850.0,0.21065039]
[1750689477116,0.82660341,101860.0,101850.0,0.17965039]
[1750689478181,0.82660341,101860.0,101850.0,0.00109039]
[1750689478386,0.82660341,101860.0,101850.0,0.17969039]
[1750689480104,0.34,101860.0,101850.0,0.38587585]
[1750689480335,0.82660341,101870.0,101860.0,0.24768061]
[1750689480554,0.51612341,101880.0,101860.0,0.39921373]
[1750689480763,0.48660341,101880.0,101870.0,0.17852]
[1750689480981,0.82660341,101880.0,101870.0,0.17852]
[1750689481200,0.98774767,101880.0,101870.0,0.17852]
[1750689481421,0.98774767,101880.0,101850.0,0.24929305]
[1750689481422,1.02024767,101880.0,101850.0,0.24929305]
[1750689481647,0.001,101870.0,101860.0,0.42480261]
[1750689481866,0.48760341,101870.0,101860.0,0.42480261]
[1750689482082,0.48660341,101870.0,101860.0,0.42480261]
[1750689482362,0.48860341,101870.0,101860.0,0.17852]
[1750689482578,0.48860341,101870.0,101850.0,0.30657521]
[1750689482791,0.48660341,101860.0,101850.0,9.039e-05]
[1750689483016,0.82660341,101860.0,101850.0,9.039e-05]
[1750689483241,0.85670341,101860.0,101850.0,9.039e-05]
[1750689483485,0.85670341,101860.0,101850.0,0.17857039]
[1750689483486,0.82660341,101860.0,101850.0,0.17857039]
[1750689483983,0.87374426,101860.0,101850.0,0.001]
[1750689484463,0.93516926,101860.0,101850.0,0.001]
[1750689484674,1.03546865,101860.0,101850.0,0.001]
[1750689485314,0.38604085,101850.0,101840.0,0.0042]
[1750689485528,0.82660341,101850.0,101840.0,0.0042]
[1750689486383,0.87434426,101850.0,101840.0,0.0042]
[1750689486817,0.87634426,101850.0,101840.0,0.0042]
[1750689487455,1.49394706,101850.0,101840.0,0.0042]
[1750689487671,0.07564085,101840.0,101830.0,0.0002]
[1750689487883,1.2097477,101840.0,101830.0,0.0002]
[1750689488101,1.1597477,101840.0,101830.0,0.0002]
[1750689488320,1.1290477,101840.0,101830.0,0.0002]
[1750689489009,1.16644307,101840.0,101830.0,0.0002]
[1750689489466,0.54914027,101840.0,101830.0,0.0002]
[1750689489689,0.54914027,101840.0,101830.0,0.35936514]
[1750689489690,0.008,101840.0,101830.0,0.35936514]
[1750689489915,0.008,101840.0,101830.0,0.56060543]
[1750689490117,0.008,101840.0,101830.0,0.58024475]
[1750689490341,0.003,101840.0,101830.0,0.58024475]
[1750689490764,0.02966302,101860.0,101850.0,0.1963672]
[1750689490974,0.34013802,101860.0,101850.0,0.4078872]
[1750689491189,0.34013802,101860.0,101850.0,0.17732]
[1750689491401,0.91326473,101860.0,101850.0,0.17832]
[1750689491849,0.57312671,101860.0,101850.0,0.17832]
[1750689492067,0.57312671,101860.0,101850.0,0.17932]
[1750689492272,0.57312671,101860.0,101850.0,0.18232]
[1750689492485,0.57312671,101860.0,101850.0,0.24662]
[1750689492690,0.57312671,101860.0,101850.0,0.0364]
[1750689492906,0.58766756,101860.0,101850.0,0.004]
[1750689493757,0.92766756,101860.0,101850.0,0.004]
[1750689494899,0.91312671,101860.0,101850.0,0.0358]
[1750689495538,0.91312671,101860.0,101850.0,0.004]
[1750689496601,0.95896756,101860.0,101850.0,0.004]
[1750689497489,0.92766756,101860.0,101850.0,0.004]
[1750689498794,1.02796695,101860.0,101850.0,0.004]
[1750689499009,0.92766756,101860.0,101850.0,0.004]
[1750689499484,0.95896756,101860.0,101850.0,0.004]
[1750689499936,0.92766756,101860.0,101850.0,0.004]
[1750689502808,0.95106828,101860.0,101850.0,0.004]
[1750689503442,0.93652743,101860.0,101850.0,0.004]
[1750689503880,0.91312671,101860.0,101850.0,0.004]
[1750689505603,0.35049623,101860.0,101850.0,0.004]
[1750689505816,0.91312671,101860.0,101850.0,0.004]
[1750689506260,0.35049623,101860.0,101850.0,0.004]
[1750689506480,0.91312671,101860.0,101850.0,0.004]
[1750689506934,1.44660532,101860.0,101850.0,0.18204]
[1750689507141,1.54690471,101860.0,101850.0,0.004]
[1750689508023,1.58010471,101860.0,101850.0,0.004]
[1750689508881,1.57720471,101860.0,101850.0,0.004]
[1750689510202,1.01457423,101860.0,101850.0,0.004]
[1750689510416,1.37281093,101860.0,101850.0,0.004]
[1750689512097,1.50441032,101860.0,101850.0,0.004]
[1750689512306,1.47311032,101860.0,101850.0,0.004]
[1750689512991,1.50531032,101860.0,101850.0,0.004]
[1750689513196,1.69121032,101860.0,101850.0,0.004]
[1750689513402,0.04674085,101840.0,101820.0,0.17792]
[1750689513612,0.82883609,101830.0,101820.0,0.17792]
[1750689514051,0.34,101820.0,101810.0,0.0627]
[1750689514288,0.82883609,101820.0,101810.0,0.20888]
[1750689514496,0.34,101820.0,101810.0,0.20888]
[1750689514700,0.82883609,101820.0,101810.0,0.20888]
[1750689514910,0.34,101820.0,101810.0,0.4558683]
[1750689515119,0.04249623,101860.0,101830.0,0.21603943]
[1750689515342,0.04249623,101860.0,101830.0,0.44933755]
[1750689515343,0.34,101840.0,101830.0,0.44933755]
[1750689515569,0.34,101840.0,101830.0,0.55945684]
[1750689515781,0.34,101840.0,101830.0,0.56927664]
[1750689515991,0.34,101840.0,101830.0,0.57909625]
[1750689516213,0.34,101840.0,101830.0,0.40121625]
[1750689516432,0.01049623,101860.0,101850.0,0.0314]
[1750689516645,0.82883609,101860.0,101850.0,0.24224]
[1750689516862,0.82883609,101860.0,101850.0,0.44842556]
[1750689517074,0.85835709,101860.0,101850.0,0.24224]
[1750689517523,0.37981597,101860.0,101850.0,0.44842556]
[1750689517730,0.37981597,101860.0,101850.0,0.45824382]
[1750689517957,0.38381597,101860.0,101850.0,0.46806198]
[1750689518199,0.38381597,101860.0,101850.0,0.47788005]
[1750689518411,0.86865206,101860.0,101850.0,0.24224]
[1750689518852,0.86865206,101860.0,101850.0,0.20924]
[1750689519056,0.86865206,101860.0,101850.0,0.0314]
[1750689519282,0.86865206,101860.0,101850.0,0.2092]
[1750689519949,0.86865206,101860.0,101850.0,0.2424]
[1750689520579,0.86865206,101860.0,101850.0,0.27078546]
[1750689520810,0.86865206,101860.0,101850.0,0.35251775]
[1750689521011,0.01029497,101860.0,101850.0,0.56852137]
[1750689521233,0.51835409,101870.0,101850.0,0.58815702]
[1750689521438,0.51835409,101870.0,101860.0,0.0632]
[1750689521640,0.85835409,101870.0,101860.0,0.0632]
[1750689522063,0.85835409,101870.0,101860.0,0.28899942]
[1750689522318,0.35340845,101870.0,101860.0,0.29881623]
[1750689522532,0.35340845,101870.0,101860.0,0.29881633]
[1750689522753,0.35040845,101870.0,101860.0,0.29881633]
[1750689522990,0.35040845,101870.0,101860.0,0.26936531]
[1750689523224,0.83924454,101870.0,101860.0,0.0632]
[1750689523444,0.83924454,101870.0,101860.0,0.20772]
[1750689523873,0.84124454,101870.0,101860.0,0.20772]
[1750689524090,0.84424454,101870.0,101860.0,0.20772]
[1750689524314,0.84224454,101870.0,101860.0,0.20772]
[1750689524528,0.83924454,101870.0,101860.0,0.20772]
[1750689524747,0.83924454,101870.0,101860.0,0.20768]
[1750689526476,0.83924454,101870.0,101860.0,0.03]
[1750689526713,0.83924454,101870.0,101860.0,0.20768]
[1750689526974,0.83924454,101870.0,101860.0,0.17768]
[1750689527845,0.83924454,101870.0,101850.0,0.20904]
[1750689528058,0.48883609,101860.0,101850.0,0.20904]
[1750689528287,0.48883609,101860.0,101850.0,0.45784333]
[1750689528497,0.48883609,101860.0,101850.0,0.4676612]
[1750689528720,0.48883609,101860.0,101850.0,0.24184]
[1750689528938,0.48883609,101860.0,101850.0,0.44802556]
[1750689529148,0.35040845,101870.0,101850.0,0.45784363]
[1750689529349,0.48883609,101860.0,101850.0,0.45002556]
[1750689529569,0.48883609,101860.0,101850.0,0.4402072]
[1750689529770,0.48883609,101860.0,101850.0,0.47066149]
[1750689530134,0.48883609,101860.0,101850.0,0.47066169]
[1750689530332,0.48883609,101860.0,101850.0,0.58959673]
[1750689530536,0.48883609,101860.0,101850.0,0.59159673]
[1750689531142,0.49924454,101870.0,101860.0,0.21598241]
[1750689531342,0.35040845,101870.0,101860.0,0.38769881]
[1750689531580,0.83924454,101870.0,101860.0,0.39751572]
[1750689531753,0.83924454,101870.0,101860.0,0.40733253]
[1750689532105,0.83924454,101870.0,101860.0,0.39751572]
[1750689532306,0.83924454,101870.0,101860.0,0.40733244]
[1750689533013,0.83924454,101870.0,101860.0,0.38869881]
[1750689533253,0.83924454,101870.0,101860.0,0.16289939]
[1750689533442,0.83924454,101870.0,101860.0,0.43642792]
[1750689533643,0.83924454,101870.0,101860.0,0.54654451]
[1750689533798,0.83924454,101870.0,101860.0,0.55636161]
[1750689533996,0.83924454,101870.0,101860.0,0.54654451]
[1750689534210,0.83924454,101870.0,101860.0,0.34037939]
[1750689534653,0.83924454,101870.0,101860.0,0.54654451]
[1750689534870,0.83924454,101870.0,101860.0,0.57599514]
[1750689535325,0.83924454,101870.0,101860.0,0.56617842]
[1750689535740,0.83924454,101870.0,101860.0,0.57599514]
[1750689536380,0.83924454,101870.0,101860.0,0.56617852]
[1750689536617,0.83924454,101870.0,101860.0,0.53672731]
[1750689536836,0.83924454,101870.0,101860.0,0.0317]
[1750689537063,0.88528539,101870.0,101840.0,0.0636]
[1750689537317,0.82883609,101850.0,101840.0,0.17736]
[1750689538617,0.82883609,101850.0,101840.0,0.18136]
[1750689538973,0.34,101850.0,101840.0,0.18136]
[1750689539186,0.82883609,101850.0,101840.0,0.18136]
[1750689539407,0.82883609,101850.0,101840.0,0.21346]
[1750689539649,0.82883609,101850.0,101840.0,0.46038502]
[1750689539850,0.82883609,101850.0,101840.0,0.25417932]
[1750689540062,0.82883609,101850.0,101840.0,0.24836]
[1750689540718,0.82883609,101850.0,101840.0,0.25817922]
[1750689540965,0.82883609,101850.0,101840.0,0.56468422]
[1750689541187,0.82883609,101850.0,101840.0,0.24836]
[1750689541627,0.82883609,101850.0,101840.0,0.4545658]
[1750689541843,0.82883609,101850.0,101840.0,0.24836]
[1750689542052,0.82883609,101850.0,101840.0,0.21746]
[1750689542322,0.82883609,101850.0,101840.0,0.008]
[1750689542538,0.84337694,101850.0,101840.0,0.18532]
[1750689543194,0.84337694,101850.0,101840.0,0.18132]
[1750689543637,0.82883609,101850.0,101840.0,0.21252]
[1750689543871,0.82883609,101850.0,101840.0,0.20852]
[1750689544346,0.82639609,101850.0,101840.0,0.20852]
[1750689544777,0.82939609,101850.0,101840.0,0.4147257]
[1750689545021,0.82939609,101850.0,101840.0,0.20852]
[1750689545243,0.49183609,101850.0,101840.0,0.17724]
[1750689545481,0.49283609,101850.0,101840.0,0.17724]
[1750689545721,0.48983609,101850.0,101840.0,0.17724]
[1750689545958,0.48983609,101850.0,101830.0,0.00013802]
[1750689545959,1.04277218,101850.0,101830.0,0.00013802]
[1750689546195,0.97767218,101840.0,101830.0,0.17733802]
[1750689546407,1.31767218,101840.0,101830.0,0.17733802]
[1750689546634,1.33221303,101840.0,101830.0,0.17733802]
[1750689546848,1.36411303,101840.0,101830.0,0.00013802]
[1750689547288,0.35454085,101840.0,101830.0,0.00013802]
[1750689547503,1.33221303,101840.0,101830.0,0.00013802]
[1750689549950,1.33221303,101840.0,101830.0,0.17729802]
[1750689550831,1.36521303,101840.0,101830.0,0.00013802]
[1750689551056,1.36521303,101840.0,101830.0,0.17729802]
[1750689551492,1.36521303,101840.0,101830.0,0.00013802]
[1750689551728,1.36521303,101840.0,101830.0,0.17725802]
[1750689551943,1.33221303,101840.0,101830.0,0.17725802]
[1750689553104,1.33221303,101840.0,101830.0,0.00013802]
[1750689553333,0.38764085,101830.0,101810.0,0.0002]
[1750689553558,0.48883609,101820.0,101810.0,0.17704]
[1750689553779,0.34,101810.0,101800.0,0.0518365]
[1750689553994,0.82883609,101810.0,101800.0,0.1967165]
[1750689554364,0.82883609,101810.0,101800.0,0.2297165]
[1750689554909,0.82883609,101810.0,101800.0,0.47752583]
[1750689555113,0.82883609,101810.0,101800.0,0.2614165]
[1750689555287,0.82883609,101810.0,101800.0,0.46970333]
[1750689555518,0.82883609,101810.0,101800.0,0.2654165]
[1750689555717,0.82883609,101810.0,101800.0,0.27523958]
[1750689555904,0.82883609,101810.0,101800.0,0.2654165]
[1750689556315,0.82883609,101810.0,101800.0,0.47170323]
[1750689556520,0.82883609,101810.0,101800.0,0.46188015]
[1750689556752,0.82883609,101810.0,101800.0,0.2654165]
[1750689557581,0.82883609,101810.0,101800.0,0.0566365]
[1750689557790,0.82883609,101810.0,101800.0,0.2336365]
[1750689558161,0.82883609,101810.0,101800.0,0.2647365]
[1750689558646,0.82883609,101810.0,101800.0,0.0566365]
[1750689558817,0.84337694,101810.0,101800.0,0.2006365]
[1750689559206,0.84337694,101810.0,101800.0,0.0236365]
[1750689559409,0.84337694,101810.0,101800.0,0.2320365]
[1750689560020,0.84337694,101810.0,101800.0,0.2300365]
[1750689560269,0.82883609,101810.0,101800.0,0.2300365]
[1750689560454,0.82883609,101810.0,101800.0,0.2280365]
[1750689561213,0.82883609,101810.0,101800.0,0.1966365]
[1750689562269,0.82883609,101810.0,101800.0,0.2288365]
[1750689562676,0.82883609,101810.0,101800.0,0.2287965]
[1750689563105,0.84337694,101810.0,101800.0,0.0196365]
[1750689563307,0.82883609,101810.0,101800.0,0.1965565]
[1750689563762,0.82883609,101810.0,101800.0,0.2291565]
[1750689563973,0.82883609,101810.0,101800.0,0.0522365]
[1750689564238,0.84337694,101810.0,101800.0,0.1965565]
[1750689564447,0.84337694,101810.0,101800.0,0.1965165]
[1750689565073,0.84337694,101810.0,101800.0,0.0196365]
[1750689565226,0.84337694,101810.0,101800.0,0.1965165]
[1750689565478,0.34,101810.0,101800.0,0.57562522]
[1750689565645,0.82883609,101810.0,101800.0,0.58544772]
[1750689565932,0.03064606,101840.0,101820.0,0.20624026]
[1750689566152,0.48883609,101830.0,101820.0,0.27946122]
[1750689566357,0.48883609,101830.0,101820.0,0.56642128]
[1750689566358,0.82883609,101830.0,101820.0,0.56642128]
[1750689566570,0.82883609,101830.0,101820.0,0.57624185]
[1750689566808,0.48883609,101830.0,101820.0,0.51284118]
[1750689566992,0.48883609,101830.0,101820.0,0.54474118]
[1750689567213,0.48883609,101830.0,101820.0,0.52510071]
[1750689567421,0.82883609,101830.0,101820.0,0.56592157]
[1750689567634,0.82883609,101830.0,101820.0,0.58556291]
[1750689567841,0.82883609,101830.0,101820.0,0.58556301]
[1750689568135,0.82883609,101830.0,101820.0,0.56618196]
[1750689568349,0.82883609,101830.0,101820.0,0.56618186]
[1750689568555,0.82883609,101830.0,101820.0,0.57600272]
[1750689568764,0.82883609,101830.0,101820.0,0.5563609]
[1750689568902,0.82883609,101830.0,101820.0,0.34029939]
[1750689569110,0.82883609,101830.0,101820.0,0.2078]
[1750689569520,0.82883609,101830.0,101820.0,0.40422506]
[1750689569734,0.82883609,101830.0,101820.0,0.2274424]
[1750689569924,0.82883609,101830.0,101820.0,0.2078]
[1750689570548,0.82883609,101830.0,101820.0,0.031]
[1750689570730,0.82883609,101830.0,101820.0,0.20776]
[1750689570933,0.82883609,101830.0,101820.0,0.40418506]
[1750689571145,0.82883609,101830.0,101820.0,0.41400631]
[1750689571369,0.82883609,101830.0,101820.0,0.43364852]
[1750689571576,0.82883609,101830.0,101820.0,0.41400631]
[1750689571829,0.82883609,101830.0,101820.0,0.20776]
[1750689572647,0.82883609,101830.0,101820.0,0.17676]
[1750689572857,0.34,101820.0,101810.0,0.0327]
[1750689572994,0.82883609,101820.0,101810.0,0.30967939]
[1750689573203,0.82883609,101820.0,101810.0,0.17668]
[1750689574090,0.82883609,101820.0,101810.0,0.17868]
[1750689574714,0.82883609,101820.0,101810.0,0.17668]
[1750689576788,0.82883609,101820.0,101810.0,0.20928]
[1750689577004,0.82883609,101820.0,101810.0,0.17668]
[1750689578894,0.82883609,101820.0,101810.0,0.20958]
[1750689579108,0.82883609,101820.0,101810.0,0.24248]
[1750689579361,0.82883609,101820.0,101810.0,0.45856858]
[1750689579574,0.82883609,101820.0,101810.0,0.24248]
[1750689580408,0.82883609,101820.0,101810.0,0.20958]
[1750689581485,0.82883609,101820.0,101810.0,0.17668]
[1750689582133,0.82883609,101820.0,101810.0,0.20728]
[1750689582337,0.82883609,101820.0,101810.0,0.45446868]
[1750689582547,0.82883609,101820.0,101810.0,0.24820212]
[1750689582749,0.82883609,101820.0,101810.0,0.44464647]
[1750689582964,0.82883609,101820.0,101810.0,0.55476778]
[1750689583179,0.82883609,101820.0,101810.0,0.54494586]
[1750689583387,0.82883609,101820.0,101810.0,0.3485016]
[1750689583603,0.82883609,101820.0,101810.0,0.33867939]
[1750689583823,0.82883609,101820.0,101810.0,0.17644]
[1750689584256,0.82883609,101820.0,101810.0,0.20924]
[1750689584744,0.82883609,101820.0,101800.0,0.2891219]
[1750689584965,0.34,101820.0,101810.0,0.17644]
[1750689586268,0.82883609,101820.0,101810.0,0.17644]
[1750689588009,0.48883609,101820.0,101810.0,0.17644]
[1750689588620,0.48883609,101820.0,101810.0,0.20904]
[1750689589784,0.50337694,101820.0,101800.0,0.11993589]
[1750689590034,1.02451303,101810.0,101780.0,0.28784126]
[1750689590260,0.82883609,101800.0,101790.0,0.17628]
[1750689590492,0.34,101800.0,101790.0,0.17628]
[1750689590735,0.34,101800.0,101790.0,0.37276295]
[1750689590979,0.34,101800.0,101780.0,0.34984567]
[1750689591236,0.34,101800.0,101780.0,0.0002]
[1750689591237,0.3706,101800.0,101780.0,0.0002]
[1750689591490,0.3706,101800.0,101790.0,0.17628]
[1750689591491,0.41774085,101800.0,101790.0,0.17628]
[1750689591730,1.39555113,101800.0,101790.0,0.17628]
[1750689591977,1.39555113,101800.0,101790.0,0.17828]
[1750689592220,0.85004085,101790.0,101770.0,1.99752]
[1750689592455,0.85004085,101790.0,101770.0,1.87759148]
[1750689592456,0.84337694,101780.0,101770.0,1.87759148]
[1750689592686,0.90887694,101780.0,101770.0,1.87759148]
[1750689593390,0.93856634,101780.0,101770.0,1.87759148]
[1750689594058,0.94356634,101780.0,101770.0,1.87759148]
[1750689594991,0.94656634,101780.0,101770.0,1.87759148]
[1750689596499,0.45773025,101780.0,101770.0,1.87759148]
[1750689596716,0.94656634,101780.0,101770.0,1.87759148]
[1750689596933,1.04686573,101780.0,101770.0,1.87759148]
[1750689598276,1.53570182,101780.0,101770.0,1.81878745]
[1750689598505,1.53570182,101780.0,101770.0,1.26861301]
[1750689599804,1.58570182,101780.0,101770.0,1.21092301]
[1750689600310,1.58570182,101780.0,101770.0,0.85443388]
[1750689600311,3.59127982,101780.0,101770.0,0.85443388]
[1750689600534,3.05244373,101780.0,101770.0,0.85443388]
[1750689600754,0.49252964,101780.0,101770.0,0.85443388]
[1750689600971,0.96682488,101780.0,101770.0,0.85443388]
[1750689601640,0.86652549,101780.0,101770.0,0.85443388]
[1750689602074,0.88106634,101780.0,101770.0,0.85443388]
[1750689602479,0.90761534,101780.0,101770.0,0.85443388]
[1750689602729,1.00291473,101780.0,101770.0,0.85443388]
[1750689602953,1.60715082,101780.0,101770.0,0.5564458]
[1750689603165,1.61115082,101780.0,101770.0,0.5564458]
[1750689603385,1.61115082,101780.0,101770.0,0.30425944]
[1750689603853,1.60715082,101780.0,101770.0,0.30425944]
[1750689604296,1.61515082,101780.0,101770.0,0.30425944]
[1750689604513,1.61515082,101780.0,101770.0,0.30168944]
[1750689604725,1.12631473,101780.0,101770.0,0.30168944]
[1750689604915,1.12431473,101780.0,101770.0,0.28289945]
[1750689605182,0.58347864,101780.0,101770.0,0.28289945]
[1750689605397,1.12231473,101780.0,101770.0,0.26597945]
[1750689605590,1.12231473,101780.0,101770.0,0.20785245]
[1750689606527,3.13189273,101780.0,101770.0,0.15965291]
[1750689606740,3.13189273,101780.0,101770.0,0.13165291]
[1750689606954,3.13189273,101780.0,101770.0,0.12803473]
[1750689607440,3.13189273,101780.0,101760.0,0.00316]
[1750689607677,0.01454085,101730.0,101720.0,0.004]
[1750689607895,0.50337694,101730.0,101720.0,0.004]
[1750689608117,1.00447633,101730.0,101720.0,0.004]
[1750689608597,1.03404333,101730.0,101720.0,0.004]
[1750689609053,1.03418127,101730.0,101720.0,0.004]
[1750689609502,1.26134127,101730.0,101720.0,0.004]
[1750689609739,0.97338127,101730.0,101720.0,0.004]
[1750689609962,0.87408188,101730.0,101720.0,0.013]
[1750689610243,0.87408188,101730.0,101720.0,0.004]
[1750689610472,0.38724579,101730.0,101720.0,0.009]
[1750689610697,0.87508188,101730.0,101720.0,0.009]
[1750689610913,0.87408188,101730.0,101720.0,0.008]
[1750689611133,0.87508188,101730.0,101720.0,0.014]
[1750689613647,0.37170494,101730.0,101720.0,0.28404887]
[1750689614096,0.01454085,101710.0,101690.0,0.0154365]
[1750689614319,0.82883609,101700.0,101690.0,0.0154365]
[1750689614543,0.34,101700.0,101690.0,0.0154365]
[1750689615249,0.35454085,101710.0,101690.0,0.0154365]
[1750689615476,0.84337694,101700.0,101690.0,0.02457333]
[1750689616234,0.34,101700.0,101690.0,0.05767333]
[1750689616467,0.34,101700.0,101690.0,0.08957333]
[1750689616694,0.341,101700.0,101690.0,0.09057333]
[1750689616926,0.341,101700.0,101690.0,0.27811267]
[1750689617152,0.34,101700.0,101690.0,0.38724577]
[1750689617392,0.342,101700.0,101690.0,0.2044034]
[1750689617617,0.35245337,101700.0,101690.0,0.41091318]
[1750689617905,0.35145337,101700.0,101690.0,0.42074669]
[1750689618137,0.35145337,101700.0,101690.0,0.59662611]
[1750689618365,0.35245337,101700.0,101690.0,0.58679289]
[1750689618590,0.35245337,101700.0,101690.0,0.59662621]
[1750689618820,0.35245337,101700.0,101690.0,0.60645943]
[1750689619014,0.35245337,101700.0,101690.0,0.60645934]
[1750689619280,0.342,101700.0,101690.0,0.60645934]
[1750689619929,0.342,101700.0,101690.0,0.65721934]
[1750689620158,0.002,101700.0,101690.0,0.65721934]
[1750689621071,0.001,101700.0,101690.0,1.14605543]
[1750689621339,0.00013794,101730.0,101720.0,0.28711029]
[1750689621575,0.00013794,101730.0,101720.0,0.5730801]
[1750689621809,0.00013794,101730.0,101720.0,0.63371033]
[1750689622042,0.01023842,101740.0,101730.0,0.0619]
[1750689622276,0.01023842,101740.0,101730.0,0.38774695]
[1750689622525,0.10782906,101750.0,101740.0,0.0302]
[1750689622754,0.10782906,101750.0,101740.0,0.205]
[1750689623031,0.48893609,101760.0,101740.0,0.41140675]
[1750689623269,0.029652,101760.0,101740.0,0.30529939]
[1750689623530,0.029652,101760.0,101740.0,0.30429939]
[1750689623813,0.029652,101760.0,101740.0,0.49233622]
[1750689624049,0.001,101750.0,101740.0,0.10229939]
[1750689624271,0.34,101750.0,101740.0,0.32581939]
[1750689624497,0.35045805,101750.0,101740.0,0.32581939]
[1750689624720,0.35045805,101750.0,101740.0,0.32681939]
[1750689624946,0.35045805,101750.0,101740.0,0.32881939]
[1750689625178,0.35045805,101750.0,101740.0,0.35881939]
[1750689625384,0.35045805,101750.0,101740.0,0.13029939]
[1750689625665,0.35145805,101750.0,101740.0,0.18076]
[1750689625876,0.35145805,101750.0,101740.0,0.17972]
[1750689626083,0.35145805,101750.0,101740.0,0.18072]
[1750689626293,0.35145805,101750.0,101740.0,0.21122]
[1750689626537,0.35145805,101750.0,101740.0,0.24362]
[1750689626757,0.002,101750.0,101740.0,1.11058073]
[1750689627015,0.002,101750.0,101740.0,0.5922589]
[1750689627229,0.002,101750.0,101740.0,0.62174464]
[1750689627853,5.7e-06,101750.0,101740.0,0.62174464]
[1750689627986,5.7e-06,101750.0,101740.0,0.39526464]
[1750689628193,5.7e-06,101750.0,101740.0,0.62170464]
[1750689630154,5.7e-06,101750.0,101740.0,0.39526464]
[1750689630325,5.7e-06,101750.0,101740.0,0.61179655]
[1750689630531,5.7e-06,101750.0,101740.0,0.63145342]
[1750689630947,5.7e-06,101750.0,101740.0,1.12028951]
[1750689632322,0.0011,101760.0,101750.0,0.22604305]
[1750689632543,0.004,101790.0,101780.0,0.29147641]
[1750689632773,0.004,101790.0,101780.0,1.10697189]
[1750689633263,0.0001,101800.0,101790.0,0.78009032]
[1750689633477,0.0001,101800.0,101790.0,0.87838971]
[1750689633915,0.00023835,101800.0,101790.0,0.87838971]
[1750689634173,0.00023835,101800.0,101790.0,0.41753807]
[1750689634391,0.00023835,101800.0,101790.0,0.61387362]
[1750689634624,0.00023835,101800.0,101790.0,1.10270971]
[1750689634810,0.00023835,101800.0,101790.0,0.61387362]
[1750689635226,0.00023835,101800.0,101790.0,0.61379362]
[1750689635434,0.00123835,101800.0,101790.0,0.62079362]
[1750689635638,0.00123835,101800.0,101790.0,1.10962971]
[1750689635857,0.00223835,101800.0,101790.0,1.12062971]
[1750689636072,0.00223835,101800.0,101790.0,0.40555362]
[1750689636277,0.00223835,101800.0,101790.0,0.39973015]
[1750689636508,0.00223835,101800.0,101790.0,0.63579362]
[1750689636704,0.00223835,101800.0,101790.0,0.33443015]
[1750689637011,0.00223835,101800.0,101790.0,0.58031728]
[1750689637671,0.00223835,101800.0,101790.0,0.57049381]
[1750689637839,0.00223835,101800.0,101790.0,0.58031728]
[1750689638272,0.00223835,101800.0,101790.0,0.58027728]